Workbook

Sheet BASE BID
C1: PROJECT: RAVI PATEL CONVENIENCE STORE | M1: Web: http://sigmaestimations.com Email: info@sigmaestimations.com
C3: ADDRESS: 917 BRATTLEBORO ROAD, HINSDALE, NH
A5: ITEM # | B5: DWG # | C5: CSI #/SUB DETAIL | D5: DESCRIPTION | E5: QTY. | F5: WASTE | G5: QTY. W/ WASTE | H5: UNIT | I5: UNIT LAB HRS | J5: LAB RATE | K5: UNIT LABOR | L5: UNIT MATERIAL | M5: TOTAL UNIT COST | N5: TOTAL COST | O5: TRADE COST
C6: 010000 | D6: DIVISION 01 — GENERAL REQUIREMENTS
A7: =IF(H7<>"",1+MAX(A1:A6),"") -> 1 | D7: Submittal Procedures | E7: 1 | F7: 0% | G7: =E7+(E7*F7) -> 1 | H7: LS | I7: 0.00 | J7: 0 | K7: =IF(H7<>"",I7*J7,"") -> 0 | L7: 0 | M7: =IF(H7<>"",K7+L7,"") -> 0 | N7: =G7*M7 -> 0
A8: =IF(H8<>"",1+MAX(A2:A7),"") -> 2 | D8: Temporary Facilities and Controls | E8: 1 | F8: 0% | G8: 1 | H8: LS | I8: 0.00 | J8: 0 | K8: =IF(H8<>"",I8*J8,"") -> 0 | L8: 0 | M8: =IF(H8<>"",K8+L8,"") -> 0 | N8: =G8*M8 -> 0
A9: 3 | D9: Closeout Procedures | E9: 1 | F9: 0% | G9: 1 | H9: LS | I9: 0.00 | J9: 0 | K9: 0 | L9: 0 | M9: 0 | N9: 0
A10: 4 | D10: Payment Procedures | E10: 1 | F10: 0% | G10: 1 | H10: LS | I10: 0.00 | J10: 0 | K10: 0 | L10: 0 | M10: 0 | N10: 0
A11: 5 | D11: Contract Modification Procedures | E11: 1 | F11: 0% | G11: 1 | H11: LS | I11: 0.00 | J11: 0 | K11: 0 | L11: 0 | M11: 0 | N11: 0
A12: =IF(H12<>"",1+MAX(A1:A11),"") -> 6 | D12: Maintenance & Traffic Protection | E12: 1 | F12: 0% | G12: 1 | H12: LS | I12: 0.00 | J12: 0 | K12: 0 | L12: 0 | M12: 0 | N12: 0
A13: =IF(H13<>"",1+MAX(A2:A12),"") -> 
D14: SUBTOTAL | K14: =IF(H14<>"",0.4*M14,"") ->  | L14: =IF(H14<>"",M14-K14,"") ->  | O14: =SUM(N7:N12) -> 0
C15: 260000 | D15: DIVISION 26 — ELECTRICAL
D17: Site Electrical
D19: Lighting Fixtures
A20: 7 | B20: ES.01 | C20: E2.01 | D20: Lighting Fixture P4 Description: NLS: NV-1-T4-32L-7-30K7-UNV-ASA-CXX | E20: 3 | F20: 0% | G20: =E20+(E20*F20) -> 3 | H20: EA | I20: 1.09 | J20: 45.75 | K20: =IF(H20<>"",I20*J20,"") -> $49.82 | L20: $196.00 | M20: =IF(H20<>"",K20+L20,"") -> $245.82 | N20: =G20*M20 -> $737
A21: 8 | B21: ES.01 | C21: E2.01 | D21: 20'-0" High Pole for Lighting Fixture P4 | E21: 3 | F21: 0% | G21: =E21+(E21*F21) -> 3 | H21: EA | I21: 8.33 | J21: 45.75 | K21: =IF(H21<>"",I21*J21,"") -> $381.25 | L21: $1,500.00 | M21: =IF(H21<>"",K21+L21,"") -> $1,881.25 | N21: =G21*M21 -> $5,644
A22: 9 | B22: ES.01 | C22: E2.01 | D22: Lighting Fixture P5 Description: NLS: NV-1-T5-32L-1-30K7-UNV-ASA-CXX | E22: 1 | F22: 0% | G22: =E22+(E22*F22) -> 1 | H22: EA | I22: 1.04 | J22: 45.75 | K22: $47.78 | L22: $188.00 | M22: =IF(H22<>"",K22+L22,"") -> $235.78 | N22: =G22*M22 -> $236
A23: 10 | B23: ES.01 | C23: E2.01 | D23: 20'-0" High Pole for Lighting Fixture P5 | E23: 1 | F23: 0% | G23: =E23+(E23*F23) -> 1 | H23: EA | I23: 8.33 | J23: 45.75 | K23: $381.25 | L23: $1,500.00 | M23: $1,881.25 | N23: $1,881
D25: Main Service Entrance Panel
A26: 11 | B26: ES.01 | C26: E2.01 | D26: (1200 AMP, 120/ 208 V, 3 Phase, 4 Wire) Main Service Metering Equipment | E26: 1 | F26: 0% | G26: =E26+(E26*F26) -> 1 | H26: EA | I26: 21.33 | J26: 45.75 | K26: $976.00 | L26: $15,040.00 | M26: =IF(H26<>"",K26+L26,"") -> $16,016.00 | N26: =G26*M26 -> $16,016
D28: Transformer
A29: 12 | B29: ES.01 | C29: E2.01 | D29: Utility CO Pad Mount Transformer | E29: 1 | F29: 0% | G29: =E29+(E29*F29) -> 1 | H29: EA | I29: 62.22 | J29: 45.75 | K29: $2,846.67 | L29: $33,200.00 | M29: =IF(H29<>"",K29+L29,"") -> $36,046.67 | N29: =G29*M29 -> $36,047
D31: Breaker
A32: 13 | B32: ES.01 | C32: E2.01 | D32: (400 AMP, 208 V, 3 Pole, 65 KAIC) Breaker | E32: 3 | F32: 0% | G32: =E32+(E32*F32) -> 3 | H32: EA | I32: 8.89 | J32: 45.75 | K32: $406.67 | L32: $1,600.00 | M32: =IF(H32<>"",K32+L32,"") -> $2,006.67 | N32: =G32*M32 -> $6,020
D34: Misc. Items
A35: 14 | B35: ES.01 | C35: E2.01 | D35: Time Clock | E35: 2 | F35: 0% | G35: =E35+(E35*F35) -> 2 | H35: EA | I35: 0.89 | J35: 45.75 | K35: $40.67 | L35: $160.00 | M35: =IF(H35<>"",K35+L35,"") -> $200.67 | N35: =G35*M35 -> $401
A36: 15 | B36: ES.01 | C36: E2.01 | D36: Dual Car EV Charging Station | E36: 4 | F36: 0% | G36: =E36+(E36*F36) -> 4 | H36: EA | I36: 13.53 | J36: 45.75 | K36: $619.04 | L36: $5,480.00 | M36: =IF(H36<>"",K36+L36,"") -> $6,099.04 | N36: =G36*M36 -> $24,396
A37: 16 | B37: ES.01 | C37: E2.01 | D37: Junction Box (JB) | E37: 1 | F37: 0% | G37: 1 | H37: EA | I37: 0.18 | J37: 45.75 | K37: $8.13 | L37: $32.00 | M37: $40.13 | N37: $40
A38: 17 | B38: ES.01 | C38: E2.01 | D38: (4" Dia.) PVC Conduit Cap | E38: 1 | F38: 0% | G38: 1 | H38: EA | I38: 0.12 | J38: 45.75 | K38: $5.69 | L38: $22.40 | M38: $28.09 | N38: $28
A39: 18 | B39: ES.01 | C39: E2.01 | D39: (5/8" x 10'-0") Copper Clad Ground Rod | E39: 1 | F39: 0% | G39: =E39+(E39*F39) -> 1 | H39: EA | I39: 0.62 | J39: 45.75 | K39: $28.47 | L39: $112.00 | M39: =IF(H39<>"",K39+L39,"") -> $140.47 | N39: =G39*M39 -> $140
A40: 19 | B40: ES.01 | C40: E2.01 | D40: Class 320-A-208V-4W Commercial Grade Meter Socket W/ Lever By Pass | E40: 3 | F40: 0% | G40: 3 | H40: EA | I40: 14.11 | J40: 45.75 | K40: $645.58 | L40: $2,540.00 | M40: $3,185.58 | N40: $9,557
A41: 20 | B41: ES.01 | C41: E2.01 | D41: (6'-0" x 3'-0") Hand Hole | E41: 1 | F41: 0% | G41: 1 | H41: EA | I41: 5.33 | J41: 45.75 | K41: $244.00 | L41: $960.00 | M41: $1,204.00 | N41: $1,204
D43: Conduits and Wires
A44: 21 | B44: ES.01 | C44: E2.01 | D44: (1" Dia.) PVC 40 Conduit. Above Ground | E44: 45 | F44: 5% | G44: =E44+(E44*F44) -> 47 | H44: LF | I44: 0.03 | J44: 45.75 | K44: $1.56 | L44: $2.30 | M44: =IF(H44<>"",K44+L44,"") -> $3.87 | N44: =G44*M44 -> $183
A45: 22 | B45: ES.01 | C45: E2.01 | D45: 2#8 Wire | E45: =E44*2 -> 90 | F45: 5% | G45: =E45+(E45*F45) -> 95 | H45: LF | I45: 0.02 | J45: 45.75 | K45: $0.79 | L45: $1.16 | M45: =IF(H45<>"",K45+L45,"") -> $1.95 | N45: =G45*M45 -> $185
A46: 23 | B46: ES.01 | C46: E2.01 | D46: 1#10 Wire | E46: =E44*1 -> 45 | F46: 5% | G46: 47 | H46: LF | I46: 0.00 | J46: 45.75 | K46: $0.23 | L46: $0.34 | M46: $0.56 | N46: $27
A48: 24 | B48: ES.01 | C48: E2.01 | D48: (1" Dia.) PVC 40 Conduit. Above Ground | E48: 40 | F48: 5% | G48: =E48+(E48*F48) -> 42 | H48: LF | I48: 0.03 | J48: 45.75 | K48: $1.56 | L48: $2.30 | M48: =IF(H48<>"",K48+L48,"") -> $3.87 | N48: =G48*M48 -> $163
A49: 25 | B49: ES.01 | C49: E2.01 | D49: 2#10 Wire | E49: =E48*2 -> 80 | F49: 5% | G49: 84 | H49: LF | I49: 0.01 | J49: 45.75 | K49: $0.46 | L49: $0.67 | M49: $1.13 | N49: $95
A50: 26 | B50: ES.01 | C50: E2.01 | D50: 1#10 Wire | E50: =E48*1 -> 40 | F50: 5% | G50: 42 | H50: LF | I50: 0.00 | J50: 45.75 | K50: $0.23 | L50: $0.34 | M50: $0.56 | N50: $24
A52: 27 | B52: ES.01 | C52: E2.01 | D52: (1-1/2" Dia.) PVC 40 Conduit. Above Ground | E52: 20 | F52: 5% | G52: =E52+(E52*F52) -> 21 | H52: LF | I52: 0.04 | J52: 45.75 | K52: $2.05 | L52: $3.02 | M52: =IF(H52<>"",K52+L52,"") -> $5.07 | N52: =G52*M52 -> $108
A53: 28 | B53: ES.01 | C53: E2.01 | D53: 4#8 Wire | E53: =E52*4 -> 81 | F53: 5% | G53: 85 | H53: LF | I53: 0.03 | J53: 45.75 | K53: $1.57 | L53: $2.32 | M53: $3.90 | N53: $330
A54: 29 | B54: ES.01 | C54: E2.01 | D54: 2#10 Wire | E54: =E52*2 -> 40 | F54: 5% | G54: 42 | H54: LF | I54: 0.01 | J54: 45.75 | K54: $0.46 | L54: $0.67 | M54: $1.13 | N54: $48
A56: 30 | B56: ES.01 | C56: E2.01 | D56: (3) (4" Dia.) PVC 40 Conduit. Above Ground | E56: =17.18*3 -> 52 | F56: 5% | G56: =E56+(E56*F56) -> 54 | H56: LF | I56: 0.23 | J56: 45.75 | K56: $10.74 | L56: $15.84 | M56: =IF(H56<>"",K56+L56,"") -> $26.58 | N56: =G56*M56 -> $1,438
A57: 31 | B57: ES.01 | C57: E2.01 | D57: 3 Sets 4#600 MCM Wire | E57: =E56*3*4 -> 618 | F57: 5% | G57: 649 | H57: LF | I57: 2.23 | J57: 45.75 | K57: $102.07 | L57: $150.60 | M57: $252.67 | N57: $164,082
A59: 32 | B59: ES.01 | C59: E2.01 | D59: (1" Dia.) PVC 40 Conduit. Under Ground | E59: 35 | F59: 5% | G59: =E59+(E59*F59) -> 36 | H59: LF | I59: 0.03 | J59: 45.75 | K59: $1.56 | L59: $2.30 | M59: =IF(H59<>"",K59+L59,"") -> $3.87 | N59: =G59*M59 -> $141
A60: 33 | B60: ES.01 | C60: E2.01 | D60: 2#10 Wire | E60: =E59*2 -> 69 | F60: 5% | G60: 73 | H60: LF | I60: 0.10 | J60: 45.75 | K60: $4.55 | L60: $6.72 | M60: $11.27 | N60: $822
A61: 34 | B61: ES.01 | C61: E2.01 | D61: 1#10 Wire | E61: =E59*1 -> 35 | F61: 5% | G61: 36 | H61: LF | I61: 0.00 | J61: 45.75 | K61: $0.23 | L61: $0.34 | M61: $0.56 | N61: $21
A63: 35 | B63: ES.01 | C63: E2.01 | D63: (1" Dia.) PVC 40 Conduit. Under Ground | E63: 316 | F63: 5% | G63: =E63+(E63*F63) -> 332 | H63: LF | I63: 0.03 | J63: 45.75 | K63: $1.56 | L63: $2.30 | M63: =IF(H63<>"",K63+L63,"") -> $3.87 | N63: =G63*M63 -> $1,283
A64: 36 | B64: ES.01 | C64: E2.01 | D64: 2#8 Wire | E64: =E63*2 -> 632 | F64: 5% | G64: 664 | H64: LF | I64: 0.02 | J64: 45.75 | K64: $0.79 | L64: $1.16 | M64: $1.95 | N64: $1,294
A65: 37 | B65: ES.01 | C65: E2.01 | D65: 1#10 Wire | E65: =E63*1 -> 316 | F65: 5% | G65: 332 | H65: LF | I65: 0.00 | J65: 45.75 | K65: $0.23 | L65: $0.34 | M65: $0.56 | N65: $187
A67: 38 | B67: ES.01 | C67: E2.01 | D67: (1-1/2" Dia.) PVC 40 Conduit. Under Ground | E67: 502 | F67: 5% | G67: =E67+(E67*F67) -> 527 | H67: LF | I67: 0.04 | J67: 45.75 | K67: $2.05 | L67: $3.02 | M67: =IF(H67<>"",K67+L67,"") -> $5.07 | N67: =G67*M67 -> $2,673
A68: 39 | B68: ES.01 | C68: E2.01 | D68: 4#8 Wire | E68: =E67*4 -> 2007 | F68: 5% | G68: 2107 | H68: LF | I68: 0.03 | J68: 45.75 | K68: $1.57 | L68: $2.32 | M68: $3.90 | N68: $8,213
A69: 40 | B69: ES.01 | C69: E2.01 | D69: 2#10 Wire | E69: =E67*2 -> 1003 | F69: 5% | G69: 1054 | H69: LF | I69: 0.01 | J69: 45.75 | K69: $0.46 | L69: $0.67 | M69: $1.13 | N69: $1,188
A71: 41 | B71: ES.01 | C71: E2.01 | D71: (4" Dia.) PVC 40 Conduit. Under Ground | E71: =4.3*3 -> 13 | F71: 5% | G71: 14 | H71: LF | I71: 0.23 | J71: 45.75 | K71: $10.74 | L71: $15.84 | M71: $26.58 | N71: $360
A72: 42 | B72: ES.01 | C72: E2.01 | D72: 3 Sets 4#600 MCM Wire | E72: =E71*3*4 -> 155 | F72: 5% | G72: 163 | H72: LF | I72: 2.23 | J72: 45.75 | K72: $102.07 | L72: $150.60 | M72: $252.67 | N72: $41,068
A74: 43 | B74: ES.01 | C74: E2.01 | D74: (1) (4" Dia.) PVC 40 Spare Conduit | E74: =13*1 -> 13 | F74: 5% | G74: 14 | H74: LF | I74: 0.08 | J74: 45.75 | K74: $3.58 | L74: $5.28 | M74: $8.86 | N74: $121
D76: Note: All Wires shall be Copper THW, THHN or XHW, 600 Volts Rated 75 Degree C Manufacturer: Anaconda or Collyer | K76: =IF(H76<>"",I76*J76,"") -> 
A77: =IF(H77<>"",1+MAX(A66:A76),"") -> 
D78: Trench Details A
A79: 44 | B79: ES.01 | C79: E2.01 | D79: 4" Dia. PVC 40 Conduit | E79: =184.9*2 -> 370 | F79: 5% | G79: =E79+(E79*F79) -> 388 | H79: LF | I79: 0.16 | J79: 45.75 | K79: $7.16 | L79: $10.56 | M79: =IF(H79<>"",K79+L79,"") -> $17.72 | N79: =G79*M79 -> $6,879
A80: 45 | B80: ES.01 | C80: E2.01 | D80: 2#12 Wire | E80: =E79*2 -> 740 | F80: 5% | G80: 777 | H80: LF | I80: 0.01 | J80: 45.75 | K80: $0.26 | L80: $0.38 | M80: $0.64 | N80: $500
A81: 46 | B81: ES.01 | C81: E2.01 | D81: 1 #12 G Wire | E81: =E79*1 -> 370 | F81: 5% | G81: 388 | H81: LF | I81: 0.00 | J81: 45.75 | K81: $0.13 | L81: $0.19 | M81: $0.32 | N81: $125
D83: Trench Details B
A84: 47 | B84: ES.01 | C84: E2.01 | D84: (4" Dia.) Primary Conduits. Wires are Assumed | E84: =73.32*2 -> 147 | F84: 5% | G84: =E84+(E84*F84) -> 154 | H84: LF | I84: 0.16 | J84: 45.75 | K84: $7.16 | L84: $10.56 | M84: =IF(H84<>"",K84+L84,"") -> $17.72 | N84: =G84*M84 -> $2,728
A85: 48 | B85: ES.01 | C85: E2.01 | D85: 3#12 Wire | E85: =E84*3 -> 440 | F85: 5% | G85: 462 | H85: LF | I85: 0.01 | J85: 45.75 | K85: =IF(H85<>"",I85*J85,"") -> $0.39 | L85: $0.58 | M85: $0.97 | N85: $446
A86: 49 | B86: ES.01 | C86: E2.01 | D86: 1 #12 G Wire | E86: =E84*1 -> 147 | F86: 5% | G86: 154 | H86: LF | I86: 0.00 | J86: 45.75 | K86: $0.13 | L86: $0.19 | M86: $0.32 | N86: $50
D88: Trench Details C
A89: 50 | B89: ES.01 | C89: E2.01 | D89: (4" Dia.) Communication Conduit. Wires are Assumed | E89: =34.88*2 -> 70 | F89: 5% | G89: =E89+(E89*F89) -> 73 | H89: LF | I89: 0.16 | J89: 45.75 | K89: $7.16 | L89: $10.56 | M89: =IF(H89<>"",K89+L89,"") -> $17.72 | N89: =G89*M89 -> $1,298
A90: 51 | B90: ES.01 | C90: E2.01 | D90: 3 CAT 6 Wires | E90: =E89*3 -> 209 | F90: 5% | G90: 220 | H90: LF | I90: 0.06 | J90: 45.75 | K90: $2.54 | L90: $3.74 | M90: $6.28 | N90: $1,380
D92: Trench Details D
A93: 52 | B93: ES.01 | C93: E2.01 | D93: (4" Dia.) Conduit to Panel P1B | E93: 41 | F93: 5% | G93: =E93+(E93*F93) -> 43 | H93: LF | I93: 0.08 | J93: 45.75 | K93: $3.58 | L93: $5.28 | M93: =IF(H93<>"",K93+L93,"") -> $8.86 | N93: =G93*M93 -> $381
A94: 53 | B94: ES.01 | C94: E2.01 | D94: 4 #600 MCM Wire | E94: =E93*4 -> 164 | F94: 5% | G94: 172 | H94: LF | I94: 0.74 | J94: 45.75 | K94: $34.02 | L94: $50.20 | M94: $84.22 | N94: $14,482
A95: 54 | B95: ES.01 | C95: E2.01 | D95: 1#1/0 Wire | E95: =E93*1 -> 41 | F95: 5% | G95: 43 | H95: LF | I95: 0.04 | J95: 45.75 | K95: $1.79 | L95: $2.64 | M95: $4.43 | N95: $190
D97: Trench Details D
A98: 55 | B98: ES.01 | C98: E2.01 | D98: (4" Dia.) Conduit to Panel P1 | E98: 3 | F98: 5% | G98: =E98+(E98*F98) -> 3 | H98: LF | I98: 0.08 | J98: 45.75 | K98: $3.58 | L98: $5.28 | M98: =IF(H98<>"",K98+L98,"") -> $8.86 | N98: =G98*M98 -> $28
A99: 56 | B99: ES.01 | C99: E2.01 | D99: 4 #600 MCM Wire | E99: =E98*4 -> 12 | F99: 5% | G99: 13 | H99: LF | I99: 0.74 | J99: 45.75 | K99: $34.02 | L99: $50.20 | M99: $84.22 | N99: $1,082
A100: 57 | B100: ES.01 | C100: E2.01 | D100: 1#1/0 Wire | E100: =E98*1 -> 3 | F100: 5% | G100: 3 | H100: LF | I100: 0.04 | J100: 45.75 | K100: $1.79 | L100: $2.64 | M100: $4.43 | N100: $14
D102: Trench Details D
A103: 58 | B103: ES.01 | C103: E2.01 | D103: (4" Dia.) Conduit to Panel P1A | E103: 14 | F103: 5% | G103: =E103+(E103*F103) -> 15 | H103: LF | I103: 0.08 | J103: 45.75 | K103: $3.58 | L103: $5.28 | M103: =IF(H103<>"",K103+L103,"") -> $8.86 | N103: =G103*M103 -> $135
A104: 59 | B104: ES.01 | C104: E2.01 | D104: 4 #600 MCM Wire | E104: =E103*4 -> 58 | F104: 5% | G104: 61 | H104: LF | I104: 0.74 | J104: 45.75 | K104: $34.02 | L104: $50.20 | M104: $84.22 | N104: $5,122
A105: 60 | B105: ES.01 | C105: E2.01 | D105: 1#1/0 Wire | E105: =E103*1 -> 14 | F105: 5% | G105: 15 | H105: LF | I105: 0.04 | J105: 45.75 | K105: $1.79 | L105: $2.64 | M105: $4.43 | N105: $67
D107: Trench Details D
A108: 61 | B108: ES.01 | C108: E2.01 | D108: (4" Dia.) Conduit to Panel P1A | E108: =14.48*2 -> 29 | F108: 5% | G108: =E108+(E108*F108) -> 30 | H108: LF | I108: 0.16 | J108: 45.75 | K108: $7.16 | L108: $10.56 | M108: =IF(H108<>"",K108+L108,"") -> $17.72 | N108: =G108*M108 -> $539
A109: 62 | B109: ES.01 | C109: E2.01 | D109: 4 #600 MCM Wire | E109: =E108*4 -> 116 | F109: 5% | G109: 122 | H109: LF | I109: 0.74 | J109: 45.75 | K109: $34.02 | L109: $50.20 | M109: $84.22 | N109: $10,244
A110: 63 | B110: ES.01 | C110: E2.01 | D110: 1#1/0 Wire | E110: =E108*1 -> 29 | F110: 5% | G110: 30 | H110: LF | I110: 0.04 | J110: 45.75 | K110: $1.79 | L110: $2.64 | M110: $4.43 | N110: $135
A111: 64 | B111: ES.01 | C111: E2.01 | D111: (4" Dia.) PVC 40 Spare Conduit | E111: 14 | F111: 5% | G111: 15 | H111: LF | I111: 0.08 | J111: 45.75 | K111: $3.58 | L111: $5.28 | M111: $8.86 | N111: $135
D113: Trench Details D
A114: 65 | B114: ES.01 | C114: E2.01 | D114: (4" Dia.) Conduits | E114: =23.13*2 -> 46 | F114: 5% | G114: =E114+(E114*F114) -> 49 | H114: LF | I114: 0.16 | J114: 45.75 | K114: $7.16 | L114: $10.56 | M114: =IF(H114<>"",K114+L114,"") -> $17.72 | N114: =G114*M114 -> $861
A115: 66 | B115: ES.01 | C115: E2.01 | D115: 4 #600 MCM Wire | E115: =E114*4 -> 185 | F115: 5% | G115: 194 | H115: LF | I115: 0.74 | J115: 45.75 | K115: $34.02 | L115: $50.20 | M115: $84.22 | N115: $16,364
A116: 67 | B116: ES.01 | C116: E2.01 | D116: 1#1/0 Wire | E116: =E114*1 -> 46 | F116: 5% | G116: 49 | H116: LF | I116: 0.04 | J116: 45.75 | K116: $1.79 | L116: $2.64 | M116: $4.43 | N116: $215
A117: 68 | B117: ES.01 | C117: E2.01 | D117: (4" Dia.) PVC 40 Spare Conduit | E117: 14 | F117: 5% | G117: 15 | H117: LF | I117: 0.08 | J117: 45.75 | K117: $3.58 | L117: $5.28 | M117: $8.86 | N117: $135
D119: Trench Details D
A120: 69 | B120: ES.01 | C120: E2.01 | D120: (4" Dia.) Conduits | E120: =45.16*2 -> 90 | F120: 5% | G120: =E120+(E120*F120) -> 95 | H120: LF | I120: 0.16 | J120: 45.75 | K120: $7.16 | L120: $10.56 | M120: =IF(H120<>"",K120+L120,"") -> $17.72 | N120: =G120*M120 -> $1,680
A121: 70 | B121: ES.01 | C121: E2.01 | D121: 4 #600 MCM Wire | E121: =E120*4 -> 361 | F121: 5% | G121: 379 | H121: LF | I121: 0.74 | J121: 45.75 | K121: $34.02 | L121: $50.20 | M121: $84.22 | N121: $31,949
A122: 71 | B122: ES.01 | C122: E2.01 | D122: 1#1/0 Wire | E122: =E120*1 -> 90 | F122: 5% | G122: 95 | H122: LF | I122: 0.04 | J122: 45.75 | K122: $1.79 | L122: $2.64 | M122: $4.43 | N122: $420
A123: 72 | B123: ES.01 | C123: E2.01 | D123: (4" Dia.) PVC 40 Spare Conduit | E123: 45 | F123: 5% | G123: =E123+(E123*F123) -> 47 | H123: LF | I123: 0.08 | J123: 45.75 | K123: $3.58 | L123: $5.28 | M123: =IF(H123<>"",K123+L123,"") -> $8.86 | N123: =G123*M123 -> $420
D125: Trench Details E
A126: 73 | B126: ES.01 | C126: E2.01 | D126: (3/4" Dia.) Conduit | E126: =45.36*5 -> 227 | F126: 5% | G126: =E126+(E126*F126) -> 238 | H126: LF | I126: 0.10 | J126: 45.75 | K126: $4.55 | L126: $6.72 | M126: =IF(H126<>"",K126+L126,"") -> $11.27 | N126: =G126*M126 -> $2,685
A127: 74 | B127: ES.01 | C127: E2.01 | D127: 2#8 Wire | E127: =E126*2 -> 454 | F127: 5% | G127: 476 | H127: LF | I127: 0.02 | J127: 45.75 | K127: $0.79 | L127: $1.16 | M127: $1.95 | N127: $928
A128: 75 | B128: ES.01 | C128: E2.01 | D128: 1#10 Wire | E128: =E126*1 -> 227 | F128: 5% | G128: 238 | H128: LF | I128: 0.00 | J128: 45.75 | K128: $0.23 | L128: $0.34 | M128: $0.56 | N128: $134
D130: BUILDING WORK
D132: Lighting Fixtures
A133: 76 | B133: E1.01 | C133: E2.01 | D133: 2 X 4 Flat Panel (A) Manufacturer: METALUX Catalogue #: 24CGTX45L835 Type: LED Wattage: 35.6 | E133: 40 | F133: 0% | G133: =E133+(E133*F133) -> 40 | H133: EA | I133: 0.72 | J133: 45.75 | K133: $32.86 | L133: $129.28 | M133: =IF(H133<>"",K133+L133,"") -> $162.14 | N133: =G133*M133 -> $6,486
A134: 77 | B134: E1.01 | C134: E2.01 | D134: 2 X 4 Flat Panel W/ Emergency battery backup (A) Manufacturer: METALUX Catalogue #: 24CGTX45L835 Type: LED Wattage: 35.6 | E134: 2 | F134: 0% | G134: 2 | H134: EA | I134: 0.75 | J134: 45.75 | K134: $34.49 | L134: $135.68 | M134: $170.17 | N134: $340
A135: 78 | B135: E1.01 | C135: E2.01 | D135: 4"ROUND DL (AA) Manufacturer: DMF Catalogue #: M4NCRNMD12935CAOM4TRSWH Type: LED Wattage: 16.5 | E135: 2 | F135: 0% | G135: 2 | H135: EA | I135: 0.70 | J135: 45.75 | K135: $31.88 | L135: $125.44 | M135: $157.32 | N135: $315
A136: 79 | B136: E1.01 | C136: E2.01 | D136: 4"ROUND DL Emergency (AAE) Manufacturer: DMF Catalogue #: M4NCRNMD12935GAOM4TRSWHEM Type: LED Wattage: 16.5 | E136: 2 | F136: 0% | G136: 2 | H136: EA | I136: 0.73 | J136: 45.75 | K136: $33.35 | L136: $131.20 | M136: $164.55 | N136: $329
A137: 80 | B137: E1.01 | C137: E2.01 | D137: 4"ROUND DL (B) Manufacturer: DMF Catalogue #: M4NCRNMD12935GAOM4TRSWH Type: LED Wattage: 16.5 | E137: 8 | F137: 0% | G137: 8 | H137: EA | I137: 0.70 | J137: 45.75 | K137: $31.88 | L137: $125.44 | M137: $157.32 | N137: $1,259
A138: 81 | B138: E1.01 | C138: E2.01 | D138: Wall Sign Light (BB) Manufacturer: LURALINE Catalogue #: RA11GNA22XCLTL8XXDIM010 Type: LED Wattage: 9.6 | E138: 6 | F138: 0% | G138: 6 | H138: EA | I138: 0.62 | J138: 45.75 | K138: $28.47 | L138: $112.00 | M138: $140.47 | N138: $843
A139: 82 | B139: E1.01 | C139: E2.01 | D139: 8-0" STRIP LIGHT( C) Manufacturer: METALUX Catalogue #: 8TSNX96SLLWUNVL840CD1U Type: LED Wattage: 64.2 | E139: 7 | F139: 0% | G139: 7 | H139: EA | I139: 0.78 | J139: 45.75 | K139: $35.46 | L139: $139.52 | M139: $174.98 | N139: $1,225
A140: 83 | B140: E1.01 | C140: E2.01 | D140: Lighting Fixture C1 Description: COOPER: HC610D010-HM60525830-61MDH | E140: 2 | F140: 0% | G140: 2 | H140: EA | I140: 0.74 | J140: 45.75 | K140: $33.83 | L140: $133.12 | M140: $166.95 | N140: $334
A141: =IF(H141<>"",1+MAX(A130:A140),"") -> 84 | B141: E1.01 | C141: E2.01 | D141: 8-0" STRIP LIGHT (DO) Manufacturer: METALUX Catalogue #: 8TSNX82SLLWUNVL840CD1UZWSVPD3 Type: LED Wattage: 52.6 | E141: 15 | F141: 0% | G141: 15 | H141: EA | I141: 0.76 | J141: 45.75 | K141: $34.81 | L141: $136.96 | M141: $171.77 | N141: $2,577
A142: 85 | B142: E1.01 | C142: E2.01 | D142: EXTERIOR EMERGENCY LIGHT (E) Manufacturer: MULE Catalogue #: EOEBB7L2-COLOR-DGPHLT Type: LED Wattage: 7.0 | E142: 2 | F142: 0% | G142: 2 | H142: EA | I142: 0.63 | J142: 45.75 | K142: $28.95 | L142: $113.92 | M142: $142.87 | N142: $286
A143: 86 | B143: E1.01 | C143: E2.01 | D143: EMERGENCY BATTERY UNIT (EB) Manufacturer: MULE Catalogue #: SSLHOWSD Type: LED Wattage: 3.0 | E143: 12 | F143: 0% | G143: 12 | H143: EA | I143: 0.59 | J143: 45.75 | K143: $27.17 | L143: $106.88 | M143: $134.05 | N143: $1,609
A144: 87 | B144: E1.01 | C144: E2.01 | D144: EXIT SIGN SELF CONTAINED (EX1) Manufacturer: MULE Catalogue #: ALURWWSD Type: LED Wattage: 3.0 | E144: 7 | F144: 0% | G144: 7 | H144: EA | I144: 0.59 | J144: 45.75 | K144: $26.84 | L144: $105.60 | M144: $132.44 | N144: $927
A145: 88 | B145: E1.01 | C145: E2.01 | D145: Lighting Fixture W3 Description: NLS: NV-W-T3-16L-35-30K7-UNV-WM-CXX | E145: 4 | F145: 0% | G145: 4 | H145: EA | I145: 1.07 | J145: 45.75 | K145: $48.80 | L145: $192.00 | M145: $240.80 | N145: $963
A146: 89 | B146: E1.01 | C146: E2.01 | D146: Lighting Fixture W4 Description: NLS: NV-W-T4-16L-53-30K7-UNV-WM-CXX | E146: 4 | F146: 0% | G146: 4 | H146: EA | I146: 1.09 | J146: 45.75 | K146: $50.02 | L146: $196.80 | M146: $246.82 | N146: $987
D148: Receptacles
A149: 90 | B149: E1.02 | C149: E2.01 | D149: Tamper Proof Double Duplex Receptacle Manufacturer: Hubbell Co DR20- Color Series | E149: 6 | F149: 0% | G149: =E149+(E149*F149) -> 6 | H149: EA | I149: 0.37 | J149: 45.75 | K149: =IF(H149<>"",I149*J149,"") -> $17.08 | L149: $67.20 | M149: =IF(H149<>"",K149+L149,"") -> $84.28 | N149: =G149*M149 -> $506
A150: 91 | B150: E1.02 | C150: E2.01 | D150: Tamper Proof Duplex Receptacle Manufacturer: Hubbell Co DR20- Color Series | E150: 21 | F150: 0% | G150: 21 | H150: EA | I150: 0.24 | J150: 45.75 | K150: $11.06 | L150: $43.52 | M150: $54.58 | N150: $1,146
A151: 92 | B151: E1.02 | C151: E2.01 | D151: Tamper Proof GFI Duplex Receptacle Manufacturer: Hubbell CO # GFI -5352-W | E151: 6 | F151: 0% | G151: 6 | H151: EA | I151: 0.35 | J151: 45.75 | K151: $15.94 | L151: $62.72 | M151: $78.66 | N151: $472
A152: 93 | B152: E1.02 | C152: E2.01 | D152: WP GFI Duplex Receptacle Manufacturer: Hubbell CO # GFI -5352-W | E152: 2 | F152: 0% | G152: 2 | H152: EA | I152: 0.39 | J152: 45.75 | K152: $17.89 | L152: $70.40 | M152: $88.29 | N152: $177
K153: =IF(H153<>"",I153*J153,"") -> 
D154: Note: All Receptacles to be Tamper Proof Style | K154: =IF(H154<>"",I154*J154,"") -> 
D156: Switches
A157: 94 | B157: E1.02 | C157: E2.01 | D157: (0-10 V Rated) Dimmer Switch | E157: 1 | F157: 0% | G157: =E157+(E157*F157) -> 1 | H157: EA | I157: 0.22 | J157: 45.75 | K157: $10.09 | L157: $39.68 | M157: =IF(H157<>"",K157+L157,"") -> $49.77 | N157: =G157*M157 -> $50
A158: 95 | B158: E1.02 | C158: E2.01 | D158: (30 AMP, 208 V, 2 P, NEMA 3R) Heavy Duty Fused Disconnect Switch Manufacturer: EATON CO | E158: 1 | F158: 0% | G158: =E158+(E158*F158) -> 1 | H158: EA | I158: 0.71 | J158: 45.75 | K158: $32.53 | L158: $128.00 | M158: =IF(H158<>"",K158+L158,"") -> $160.53 | N158: =G158*M158 -> $161
A159: 96 | B159: E1.02 | C159: E2.01 | D159: (60 AMP, 208 V, 2 P, NEMA 3R) Heavy Duty Fused Disconnect Switch Manufacturer: EATON CO | E159: 6 | F159: 0% | G159: 6 | H159: EA | I159: 0.98 | J159: 45.75 | K159: $44.73 | L159: $176.00 | M159: $220.73 | N159: $1,324
A160: 97 | B160: E1.02 | C160: E2.01 | D160: 3- Way Switch | E160: 5 | F160: 0% | G160: 5 | H160: EA | I160: 0.31 | J160: 45.75 | K160: $14.31 | L160: $56.32 | M160: $70.63 | N160: $353
A161: 98 | B161: E1.02 | C161: E2.01 | D161: Single Pole Switch | E161: 7 | F161: 0% | G161: 7 | H161: EA | I161: 0.21 | J161: 45.75 | K161: $9.76 | L161: $38.40 | M161: $48.16 | N161: $337
A162: 99 | B162: E1.02 | C162: E2.01 | D162: Thermal Switch | E162: 9 | F162: 0% | G162: 9 | H162: EA | I162: 0.34 | J162: 45.75 | K162: $15.45 | L162: $60.80 | M162: $76.25 | N162: $686
K163: =IF(H163<>"",I163*J163,"") -> 
D164: Note: Switches shall be Hubbell Co | K164: =IF(H164<>"",I164*J164,"") -> 
D166: Tenant A Panel
A167: 100 | B167: E1.02 | C167: E2.01 | D167: (200 AMP, 120/ 208 V) Panel P1A 60 Spaces Manufacturer: EATON CO | E167: 1 | F167: 0% | G167: =E167+(E167*F167) -> 1 | H167: EA | I167: 19.56 | J167: 45.75 | K167: $894.67 | L167: $3,520.00 | M167: =IF(H167<>"",K167+L167,"") -> $4,414.67 | N167: =G167*M167 -> $4,415
A168: 101 | B168: E1.02 | C168: E2.01 | D168: (400 AMP, 120/ 208 V) Panel P1 30 Spaces Manufacturer: EATON CO | E168: 1 | F168: 0% | G168: 1 | H168: EA | I168: 27.56 | J168: 45.75 | K168: $1,260.67 | L168: $4,960.00 | M168: $6,220.67 | N168: $6,221
A169: 102 | B169: E1.02 | C169: E2.01 | D169: (1-1/2" X 6'-0" Long) EMT Nipples for Panels | E169: =2*4 -> 8 | F169: 0% | G169: =E169+(E169*F169) -> 8 | H169: EA | I169: 0.27 | J169: 45.75 | K169: $12.20 | L169: $48.00 | M169: =IF(H169<>"",K169+L169,"") -> $60.20 | N169: =G169*M169 -> $482
D171: Tenant B Panel
A172: 103 | B172: E1.02 | C172: E2.01 | D172: (400 AMP, 120/ 208 V) Panel P1B 42 Spaces Manufacturer: EATON CO | E172: 1 | F172: 0% | G172: =E172+(E172*F172) -> 1 | H172: EA | I172: 30.22 | J172: 45.75 | K172: $1,382.67 | L172: $5,440.00 | M172: =IF(H172<>"",K172+L172,"") -> $6,822.67 | N172: =G172*M172 -> $6,823
A173: 104 | B173: E1.02 | C173: E2.01 | D173: (1-1/2" X 6'-0" Long) EMT Nipples for Panel | E173: =1*4 -> 4 | F173: 0% | G173: 4 | H173: EA | I173: 0.27 | J173: 45.75 | K173: $12.20 | L173: $48.00 | M173: $60.20 | N173: $241
D175: Breaker
A176: 105 | B176: E1.02 | C176: E2.01 | D176: (20 AMP, 1 Pole) GFCI Rated Circuit Breaker | E176: 1 | F176: 0% | G176: =E176+(E176*F176) -> 1 | H176: EA | I176: 0.31 | J176: 45.75 | K176: $14.31 | L176: $56.32 | M176: =IF(H176<>"",K176+L176,"") -> $70.63 | N176: =G176*M176 -> $71
A177: 106 | B177: E1.02 | C177: E2.01 | D177: (20 AMP, 1 Pole) Lockable Circuit Breaker | E177: 1 | F177: 0% | G177: 1 | H177: EA | I177: 0.27 | J177: 45.75 | K177: $12.20 | L177: $48.00 | M177: $60.20 | N177: $60
D179: Misc. Items
A180: 107 | B180: E1.02 | C180: E2.01 | D180: (2" Dia.) Conduit Cap | E180: 1 | F180: 0% | G180: =E180+(E180*F180) -> 1 | H180: EA | I180: 0.09 | J180: 45.75 | K180: $4.07 | L180: $16.00 | M180: =IF(H180<>"",K180+L180,"") -> $20.07 | N180: =G180*M180 -> $20
A181: 108 | B181: E1.02 | C181: E2.01 | D181: Junction Box (JB) | E181: 11 | F181: 0% | G181: 11 | H181: EA | I181: 0.18 | J181: 45.75 | K181: $8.13 | L181: $32.00 | M181: $40.13 | N181: $441
A182: 109 | B182: E1.02 | C182: E2.01 | D182: Photocell | E182: 2 | F182: 0% | G182: 2 | H182: EA | I182: 0.71 | J182: 45.75 | K182: $32.53 | L182: $128.00 | M182: $160.53 | N182: $321
A183: 110 | B183: E1.02 | C183: E2.01 | D183: Type 1 Surge Protection Device No Conduit and Wire Required | E183: 3 | F183: 0% | G183: 3 | H183: EA | I183: 0.92 | J183: 45.75 | K183: $41.89 | L183: $164.80 | M183: $206.69 | N183: $620
A184: 111 | B184: E1.02 | C184: E2.01 | D184: Time Clock | E184: 2 | F184: 0% | G184: 2 | H184: EA | I184: 0.89 | J184: 45.75 | K184: $40.67 | L184: $160.00 | M184: $200.67 | N184: $401
A185: 112 | B185: E1.02 | C185: E2.01 | D185: (4") Square or Octagon Outlet Boxes for Switches Manufacturer: Raco | E185: 35 | F185: 0% | G185: 35 | H185: EA | I185: 0.17 | J185: 45.75 | K185: $7.81 | L185: $30.72 | M185: $38.53 | N185: $1,348
A186: 113 | B186: E1.02 | C186: E2.01 | D186: (4") Square or Octagon Outlet Boxes for Receptacles Manufacturer: Raco | E186: 29 | F186: 0% | G186: =E186+(E186*F186) -> 29 | H186: EA | I186: 0.17 | J186: 45.75 | K186: $7.81 | L186: $30.72 | M186: =IF(H186<>"",K186+L186,"") -> $38.53 | N186: =G186*M186 -> $1,117
A187: 114 | B187: E1.02 | C187: E2.01 | D187: Conduit Hangers and Supports. Spacing is Assumed Hangers, Clips and Other Fasteners should be Zinc Coated | E187: =2944/12 -> 245 | F187: 0% | G187: 245 | H187: EA | I187: 0.10 | J187: 45.75 | K187: $4.47 | L187: $17.60 | M187: $22.07 | N187: $5,415
D189: Wiring & Conduits
A190: 115 | B190: E1.02 | C190: E2.01 | D190: Conduits for Lightning Items Assume EMT Conduit | E190: =113*16 -> 1808 | F190: 5% | G190: =E190+(E190*F190) -> 1898 | H190: LF | I190: 0.03 | J190: 45.75 | K190: $1.56 | L190: $2.30 | M190: =IF(H190<>"",K190+L190,"") -> $3.87 | N190: =G190*M190 -> $7,338
A191: 116 | B191: E1.02 | C191: E2.01 | D191: Wiring for Lightning Items | E191: =E190*4 -> 7232 | F191: 5% | G191: 7594 | H191: LF | I191: 0.01 | J191: 45.75 | K191: $0.39 | L191: $0.58 | M191: $0.97 | N191: $7,400
A193: 117 | B193: E1.02 | C193: E2.01 | D193: Conduits for Power Items Assume EMT Conduit | E193: =71*16 -> 1136 | F193: 5% | G193: =E193+(E193*F193) -> 1193 | H193: LF | I193: 0.03 | J193: 45.75 | K193: $1.56 | L193: $2.30 | M193: =IF(H193<>"",K193+L193,"") -> $3.87 | N193: =G193*M193 -> $4,611
A194: 118 | B194: E1.02 | C194: E2.01 | D194: Wiring for Power Items | E194: =E193*4 -> 4544 | F194: 5% | G194: 4771 | H194: LF | I194: 0.01 | J194: 45.75 | K194: $0.39 | L194: $0.58 | M194: $0.97 | N194: $4,649
D196: Note: All Wires shall be Copper THW, THHN or XHW, 600 Volts Rated 75 Degree C Manufacturer: Anaconda or Collyer | K196: =IF(H196<>"",I196*J196,"") -> 
K197: =IF(H197<>"",I197*J197,"") -> 
A198: 119 | D198: Scaffolding/Lifts Interior (H= 15'-9" Average) | E198: 6141 | F198: 5% | G198: =E198+(E198*F198) -> 6448 | H198: SF | I198: 0.03 | J198: 45.75 | K198: $1.46 | L198: $2.16 | M198: =IF(H198<>"",K198+L198,"") -> $3.62 | N198: =G198*M198 -> $23,369
A200: 120 | D200: Additional Cost Based on Electrical Work Area | E200: 6270 | F200: 5% | G200: =E200+(E200*F200) -> 6584 | H200: SF | I200: 0.01 | J200: 45.75 | K200: $0.27 | L200: $1.06 | M200: =IF(H200<>"",K200+L200,"") -> $1.32 | N200: =G200*M200 -> $8,719
D202: SUBTOTAL | O202: =SUM(N20:N200) -> $535,925
C203: 280000 | D203: DIVISION 28 — ELECTRONIC SAFETY AND SECURITY
A205: =IF(H205<>"",1+MAX(A194:A204),"") ->  | D205: Sensor
A206: 121 | B206: FA.01 | C206: FA.02 | D206: Carbon Monoxide Detector (CO) | E206: 3 | F206: 0% | G206: =E206+(E206*F206) -> 3 | H206: EA | I206: 0.62 | J206: 45.75 | K206: $28.47 | L206: $112.00 | M206: =IF(H206<>"",K206+L206,"") -> $140.47 | N206: =G206*M206 -> $421
A207: 122 | B207: FA.01 | C207: FA.02 | D207: Ceiling Mounted Motion Sensor (OS) | E207: 1 | F207: 0% | G207: 1 | H207: EA | I207: 0.62 | J207: 45.75 | K207: $28.47 | L207: $112.00 | M207: $140.47 | N207: =G207*M207 -> $140
A208: 123 | B208: FA.01 | C208: FA.02 | D208: Heat Detector Model: H365 Series | E208: 9 | F208: 0% | G208: 9 | H208: EA | I208: 0.61 | J208: 45.75 | K208: $27.98 | L208: $110.08 | M208: $138.06 | N208: =G208*M208 -> $1,243
A209: 124 | B209: FA.01 | C209: FA.02 | D209: Photo Electric Smoke Detector Model: SD365 Series | E209: 13 | F209: 0% | G209: 13 | H209: EA | I209: 0.63 | J209: 45.75 | K209: $28.95 | L209: $113.92 | M209: $142.87 | N209: =G209*M209 -> $1,857
A210: 125 | B210: FA.01 | C210: FA.02 | D210: Wall Mounted Motion Sensor ($M) | E210: 3 | F210: 0% | G210: =E210+(E210*F210) -> 3 | H210: EA | I210: 0.53 | J210: 45.75 | K210: $24.40 | L210: $96.00 | M210: =IF(H210<>"",K210+L210,"") -> $120.40 | N210: =G210*M210 -> $361
K211: =IF(H211<>"",I211*J211,"") -> 
D212: Fire Alarm Items
A213: 126 | B213: FA.01 | C213: FA.02 | D213: Ceiling Mounted Horn/ Strobe (Rating = 75 Candela) | E213: 5 | F213: 0% | G213: =E213+(E213*F213) -> 5 | H213: EA | I213: 1.16 | J213: 45.75 | K213: $52.87 | L213: $208.00 | M213: =IF(H213<>"",K213+L213,"") -> $260.87 | N213: =G213*M213 -> $1,304
A214: 127 | B214: FA.01 | C214: FA.02 | D214: Fire Alarm Control Panel (FACP) | E214: 1 | F214: 0% | G214: 1 | H214: EA | I214: 5.33 | J214: 45.75 | K214: $244.00 | L214: $960.00 | M214: $1,204.00 | N214: $1,204
A215: 128 | B215: FA.01 | C215: FA.02 | D215: Fire Alarm Pull Station Model: BG12LX Series | E215: 4 | F215: 0% | G215: 4 | H215: EA | I215: 0.80 | J215: 45.75 | K215: $36.60 | L215: $144.00 | M215: $180.60 | N215: $722
A216: 129 | B216: FA.01 | C216: FA.02 | D216: Fire Alarm Remote Beacon | E216: 1 | F216: 0% | G216: 1 | H216: EA | I216: 0.54 | J216: 45.75 | K216: $24.73 | L216: $97.28 | M216: $122.01 | N216: $122
A217: 130 | B217: FA.01 | C217: FA.02 | D217: Fire Fighter Key Box | E217: 1 | F217: 0% | G217: 1 | H217: EA | I217: 0.22 | J217: 45.75 | K217: $10.09 | L217: $39.68 | M217: $49.77 | N217: $50
A218: 131 | B218: FA.01 | C218: FA.02 | D218: Remote Annunciator Manufacturer: Fire Light Model: ANN-80 Series | E218: 1 | F218: 0% | G218: 1 | H218: EA | I218: 3.02 | J218: 45.75 | K218: $138.27 | L218: $544.00 | M218: $682.27 | N218: $682
A219: 132 | B219: FA.01 | C219: FA.02 | D219: Strobe (Rating = 15 Candela) | E219: 3 | F219: 0% | G219: 3 | H219: EA | I219: 0.54 | J219: 45.75 | K219: $24.73 | L219: $97.28 | M219: $122.01 | N219: $366
A220: 133 | B220: FA.01 | C220: FA.02 | D220: Wall Mounted Horn/ Strobe (Rating = 15 Candela) | E220: 3 | F220: 0% | G220: 3 | H220: EA | I220: 1.07 | J220: 45.75 | K220: $48.80 | L220: $192.00 | M220: $240.80 | N220: $722
A221: 134 | B221: FA.01 | C221: FA.02 | D221: Wall Mounted Horn/ Strobe (Rating = 30 Candela) | E221: 1 | F221: 0% | G221: =E221+(E221*F221) -> 1 | H221: EA | I221: 1.11 | J221: 45.75 | K221: $50.75 | L221: $199.68 | M221: =IF(H221<>"",K221+L221,"") -> $250.43 | N221: $250
A222: 135 | B222: FA.01 | C222: FA.02 | D222: Wall Mounted Horn/ Strobe (Rating = 75 Candela) | E222: 1 | F222: 0% | G222: 1 | H222: EA | I222: 1.16 | J222: 45.75 | K222: $52.87 | L222: $208.00 | M222: $260.87 | N222: $261
D224: Wiring & Conduits
A226: 136 | B226: FA.01 | C226: FA.02 | D226: Conduits EMT Conduit | E226: =49*16 -> 784 | F226: 5% | G226: =E226+(E226*F226) -> 823 | H226: LF | I226: 0.03 | J226: 45.75 | K226: $1.56 | L226: $2.30 | M226: =IF(H226<>"",K226+L226,"") -> $3.87 | N226: =G226*M226 -> $3,182
A228: 137 | B228: FA.01 | C228: FA.02 | D228: Wiring | E228: =E226*4 -> 3136 | F228: 5% | G228: 3293 | H228: LF | I228: 0.01 | J228: 45.75 | K228: $0.39 | L228: $0.58 | M228: $0.97 | N228: $3,209
D229: Note: All Wires shall be Copper THW, THHN or XHW, 600 Volts Rated 75 Degree C Manufacturer: Anaconda or Collyer
A231: 138 | D231: Scaffolding/Lifts Interior (H= 12'-0") | E231: 4226 | F231: 5% | G231: =E231+(E231*F231) -> 4438 | H231: SF | I231: 0.03 | J231: 45.75 | K231: $1.46 | L231: $2.16 | M231: =IF(H231<>"",K231+L231,"") -> $3.62 | N231: =G231*M231 -> $16,082
A233: 139 | D233: Additional Cost Based on Fire Alarm Work Area | E233: 1020 | F233: 5% | G233: 1071 | H233: SF | I233: 0.01 | J233: 45.75 | K233: $0.27 | L233: $1.06 | M233: $1.32 | N233: =G233*M233 -> $1,418
D235: SUBTOTAL | O235: =SUM(N206:N233) -> $33,599
C236: 310000 | D236: DIVISION 31 — EARTH WORKER
D238: Excavation
A239: 140 | B239: ES.01 | D239: Excavation for (1" Dia.) PVC 40 Conduit. Under Ground | E239: =351*2.083*2.083/27 -> 56 | F239: 5% | G239: =E239+(E239*F239) -> 59 | H239: CY | I239: 0.62 | J239: 45.75 | K239: $28.47 | L239: 0 | M239: =IF(H239<>"",K239+L239,"") -> $28.47 | N239: =G239*M239 -> $1,686
A240: 141 | B240: ES.01 | D240: Excavation for (1-1/2" Dia.) PVC 40 Conduit. Under Ground | E240: =501.7*2.125*2.125/27 -> 84 | F240: 5% | G240: 88 | H240: CY | I240: 0.62 | J240: 45.75 | K240: $28.47 | L240: 0 | M240: $28.47 | N240: $2,508
A241: 142 | B241: ES.01 | D241: Excavation for (4" Dia.) PVC 40 Conduit. Under Ground | E241: =26*3.33*3.33/27 -> 11 | F241: 5% | G241: 11 | H241: CY | I241: 0.62 | J241: 45.75 | K241: $28.47 | L241: 0 | M241: $28.47 | N241: $319
A243: 143 | B243: ES.01 | D243: Excavation For Trench Type A | E243: 203 | F243: 5% | G243: =E243+(E243*F243) -> 213 | H243: CY | I243: 0.62 | J243: 45.75 | K243: $28.47 | L243: 0 | M243: =IF(H243<>"",K243+L243,"") -> $28.47 | N243: =G243*M243 -> $6,053
A244: 144 | B244: ES.01 | D244: Excavation For Trench Type B | E244: 80 | F244: 5% | G244: 84 | H244: CY | I244: 0.62 | J244: 45.75 | K244: $28.47 | L244: 0 | M244: $28.47 | N244: $2,399
A245: 145 | B245: ES.01 | D245: Excavation For Trench Type C | E245: 38 | F245: 5% | G245: 40 | H245: CY | I245: 0.62 | J245: 45.75 | K245: $28.47 | L245: 0 | M245: $28.47 | N245: $1,141
A246: 146 | B246: ES.01 | D246: Excavation For Trench Type D | E246: 147 | F246: 5% | G246: =E246+(E246*F246) -> 155 | H246: CY | I246: 0.62 | J246: 45.75 | K246: $28.47 | L246: 0 | M246: =IF(H246<>"",K246+L246,"") -> $28.47 | N246: =G246*M246 -> $4,401
A247: 147 | B247: ES.01 | D247: Excavation For Trench Type E | E247: 151 | F247: 5% | G247: 159 | H247: CY | I247: 0.62 | J247: 45.75 | K247: $28.47 | L247: 0 | M247: $28.47 | N247: $4,528
A248: 148 | B248: ES.01 | D248: Excavation for (6'-0" x 3'-0") Hand Hole | E248: =1*6*3*3/27 -> 2 | F248: 5% | G248: 2 | H248: CY | I248: 0.62 | J248: 45.75 | K248: $28.47 | L248: 0 | M248: $28.47 | N248: $60
A249: 149 | B249: LT-1 | D249: Excavation for 20'-0" High Pole for Lighting Fixtures | E249: =4*3.14*2*2*0.25*8/27 -> 4 | F249: 5% | G249: =E249+(E249*F249) -> 4 | H249: CY | I249: 0.62 | J249: 45.75 | K249: $28.47 | L249: 0 | M249: $28.47 | N249: $111
... 48 more rows

Sheet Excavation & Backfill
A1: Trench Excavation & Backfill Calculation In CY
A2: Sr.No | B2: Description | C2: Length (FT) | D2: Pipe Dia (Inch) | E2: Bedding(FT) | F2: Pipe Dia (FT) | G2: Pipe Zone Height (FT) | H2: Native Fill Height (FT) | I2: Area of Pipe (SF) | J2: Volume of Pipe (CY) | K2: Trench Width (FT) | L2: Trench Depth (FT) | M2: Excavation (CY) | N2: (6" Thk) Sand Bedding (CY) | O2: Sand Backfill (CY) | P2: Native Backfill (CY)
B3: Conduits
A4: 1 | B4: 4" Dia PVC Conduit(A) | C4: 370 | D4: 7 | E4: =6/12 -> 0.5 | F4: =D4/12*2 -> 1.17 | G4: =1+F4 -> 2.17 | H4: =L4-G4-E4 -> 2.00 | I4: =(3.14*F4*F4)/4 -> 1.068 | J4: =C4*I4/27 -> 14.642 | K4: =1+1+F4 -> 3.17 | L4: =3+F4+E4 -> 4.67 | M4: =C4*K4*L4/27 -> 202.51 | N4: =(C4*K4*E4/27)*1.33 -> 28.86 | O4: =((C4*K4*G4/27)-J4)*1.33 -> 105.58 | P4: =(C4*K4*H4/27) -> 86.79 | Q4: =(2*3.14*0.16)*C4*0.25/27 -> 3.44237037
A5: =A4+1 -> 2 | B5: 4" Dia PVC Conduit(B) | C5: 146.64 | D5: 7 | E5: =6/12 -> 0.5 | F5: =D5/12*2 -> 1.17 | G5: =1+F5 -> 2.17 | H5: =L5-G5-E5 -> 2.00 | I5: 1.068 | J5: =C5*I5/27 -> 5.803 | K5: =1+1+F5 -> 3.17 | L5: =3+F5+E5 -> 4.67 | M5: =C5*K5*L5/27 -> 80.26 | N5: =(C5*K5*E5/27)*1.33 -> 11.44 | O5: =((C5*K5*G5/27)-J5)*1.33 -> 41.84 | P5: =(C5*K5*H5/27) -> 34.40 | Q5: =(2*3.14*0.16)*C5*0.25/27 -> 1.364295111
A6: =A5+1 -> 3 | B6: 4" Dia PVC Conduit(C) | C6: 69.76 | D6: 7 | E6: 0.5 | F6: =D6/12*2 -> 1.17 | G6: 2.17 | H6: =L6-G6-E6 -> 2.00 | I6: 1.068 | J6: 2.761 | K6: 3.17 | L6: 4.67 | M6: 38.18 | N6: 5.44 | O6: 19.91 | P6: 16.36 | Q6: 0.6490263704
A7: =A6+1 -> 4 | B7: 4" Dia PVC Conduit(D) | C7: 269 | D7: 7 | E7: 0.5 | F7: 1.17 | G7: 2.17 | H7: =L7-G7-E7 -> 2.00 | I7: 1.068 | J7: 10.645 | K7: 3.17 | L7: 4.67 | M7: 147.23 | N7: 20.98 | O7: 76.76 | P7: 63.10 | Q7: 2.502696296
A8: =A5+1 -> 3 | B8: 4" Dia PVC Conduit(E) | C8: 226.8 | D8: 3.75 | E8: 0.5 | F8: =D8/12*5 -> 1.56 | G8: 2.56 | H8: =L8-G8-E8 -> 2.00 | I8: 1.917 | J8: 16.099 | K8: 3.56 | L8: 5.06 | M8: =C8*K8*L8/27 -> 151.50 | N8: 19.90 | O8: 80.58 | P8: 59.85 | Q8: 2.11008
B10: Tracer Wire (LF) | C10: =SUM(C4:C8) -> 1082.20 | P10: Total | Q10: =SUM(Q4:Q8) -> 10.06846815

Sheet UJ (hidden)
C2: PROJECT: | D2: 625 PARK AVE PHASE 1B
C3: ADDRESS: | D3: 625 PARK AVENUE,
D4: NEW YORK, NY-10065.
H6: DATE | I6: =TODAY() -> 2026-07-28
A7: ITEM # | B7: CSI SEC. | C7: DESCRIPTION | D7: QTY. | E7: WASTE | F7: QTY. W/ WASTE | G7: UNIT | H7: UNIT COST | I7: TRADE COST | L7: Single side areas
C8: SCOPE OF WORK | L8: Dry | M8: Wet
A9: 1 | B9: 09 29 | C9: 2 layered 5/8" thick USG fiberock brand panels for walls and ceilings. | D9: 11,635 | E9: 10% | F9: =D9*(1+E9) -> 12,799 | G9: sf | H9: $4.0 | I9: =H9*F9 -> $51,194 | J9: Type 1+Type 4+Type 6+ceiling | K9: Type 1 | L9: =2520-80 -> 2440 | M9: 280 | N9: =(2440*2+290*2+2345+3830) -> 11635
A10: 2 | B10: 09 29 | C10: 2 layerd 5/8" thick USG fiberock aqua tough brand panels for wall and ceilings in wet areas. | D10: 1,185 | E10: 10% | F10: =D10*(1+E10) -> 1,304 | G10: sf | H10: $4.5 | I10: =H10*F10 -> $5,866 | J10: Type 1+Type 4+Type 6+wet ceiling | K10: Type 2 | L10: =210-80 -> 130 | M10: 80 | N10: =(280*2+325+300) -> 1185
A11: 3 | B11: 09 29 | C11: 2 layered 2 HR rated 5/8" thick USG fiberock brand panels for walls. | D11: 260 | E11: 10% | F11: =D11*(1+E11) -> 286 | G11: sf | H11: $4.5 | I11: =H11*F11 -> $1,287 | J11: Type 2 | K11: Type 3 | N11: =130*2 -> 260
A12: 4 | B12: 09 29 | C12: 2 layered 2 HR rated 5/8" thick USG fiberock aqua tough brand panels for walls in wet areas. | D12: 160 | E12: 10% | F12: 176 | G12: sf | H12: $5.0 | I12: =H12*F12 -> $880 | J12: Type 2 | K12: Type 4 | L12: 290 | N12: =80*2 -> 160
A13: 5 | B13: 09 29 | C13: 3 layered 3 HR rated 5/8" thick USG fiberock brand panels for walls. | D13: 300 | E13: 10% | F13: 330 | G13: sf | H13: $4.0 | I13: =H13*F13 -> $1,320 | J13: Type 7 | K13: Type 5 | L13: 1200 | N13: =150*2 -> 300
A14: 6 | B14: 09 26 | C14: 3/32" thick gypsum veneer plaster skim coat. | D14: 14,740 | E14: 10% | F14: 16,214 | G14: sf | H14: $4.0 | I14: =H14*F14 -> $64,856 | J14: Type 1+Type 2+ Type 4+Type 5+Type 6 +Type 7 | K14: Type 6 | L14: =2670-325 -> 2345 | M14: 325 | N14: =SUM(N9:N13)+L13 -> 14740 | O14: =SUM(L9:M10)*2+L13+SUM(L14:M14)+L15*2+SUM(L17:M17)+L12*2 -> 14740 | P14: =N14-O14 -> 0
A15: 7 | B15: 09 22 16 | C15: 3-5/8" steel studs 20 GA @ 16" O.C. | D15: 5,750 | E15: 10% | F15: 6,325 | G15: sf | H15: $2.5 | I15: =H15*F15 -> $15,813 | J15: Type 1+Type 2+Type 6+Type 7 | K15: Type 7 | L15: 150 | N15: =SUM(L9:M10)+SUM(L14:M15) -> 5750
A16: 8 | B16: 10 22 16 | C16: 1-5/8" steel studs 20 GA @ 12" O.C. | D16: 290 | E16: 10% | F16: 319 | G16: sf | H16: $2.0 | I16: $638 | J16: Type 4 | K16: Type 8 | L16: 20
A17: 8 | B17: 09 22 26 | C17: Ceiling suspension system. | D17: 4,130 | E17: 10% | F17: 4,543 | G17: sf | H17: $3.0 | I17: =H17*F17 -> $13,629 | K17: Ceiling | L17: 3830 | M17: 300 | N17: =SUM(L17:M17) -> 4130
A18: 9 | B18: 07 21 16 | C18: Batt Insulation. | D18: 5,600 | E18: 5% | F18: 5,880 | G18: sf | H18: $2.0 | I18: =H18*F18 -> $11,760 | J18: Type 1+Type 2+ Type 6 | N18: =SUM(L9:M10)+SUM(L14:M14) -> 5600
A19: 10 | B19: 07 21 16 | C19: Batt Insulation type SAFB. | D19: 150 | E19: 10% | F19: 165 | G19: sf | H19: $2.2 | I19: =H19*F19 -> $363 | J19: Type 7 | N19: 150
A21: SUB TOTAL | I21: =SUM(I9:I19) -> $167,605
A22: INSURANCE (3%) | I22: =(3/100)*I21 -> $5,028
A23: TOTAL BASE BID | I23: =SUM(I21:I22) -> $172,633
C25: Exclusions
B26: 1 | C26: Mouldings
B27: 2 | C27: Patch work
B28: 3 | C28: Fixtures
B29: 4 | C29: Electrical work
B30: 5 | C30: Stone and/or tile work
B31: 6 | C31: Wall type 8 [no details on provided on the drawing]

Sheet DETAIL (2) (hidden)
B2: PROJECT: | C2: 625 PARK AVE PHASE 1B
B3: ADDRESS: | C3: 625 PARK AVENUE
C4: NEW YORK, NY 10065
E6: DATE | F6: =TODAY() -> 2026-07-28
A7: ITEM # | B7: DESCRIPTION | C7: UNIT COST | D7: QTY. | E7: UNIT | F7: TRADE COST
B8: SCOPE OF WORK
A9: 1 | B9: 5/8" 2 layered USG fiberock brand panels. | D9: =((2358+277+2077)-644)+3830 -> 7,898 | E9: sf | F9: =C9*D9 -> 0 | G9: Type 1+Type 4+Type 6+ceiling
A10: 2 | B10: 5/8" 2 layered USG fiberock aqua tough brand panels. (Wet area). | D10: =644+292 -> 936 | E10: sf | F10: =C10*D10 -> 0 | G10: Type 1+Type 4+Type 6+wet ceiling | I10: Height 9'6"
A11: 3 | B11: 2 HR rated 5/8" 2 layered USG fiberock brand panels. | D11: =206-78 -> 128 | E11: sf | F11: 0 | G11: Type 2 | I11: For Doors & Cabinets 1'3"
A12: 4 | B12: 2 HR rated 5/8" 2 layered USG fiberock aqua tough brand panels. (Wet area). | D12: 78 | E12: sf | F12: 0 | G12: Type 2
A13: 5 | B13: 3 HR rated 5/8" 3 layered USG fiberock brand panels. | D13: 148 | E13: sf | F13: 0 | G13: Type 7
A14: 6 | B14: 3/32" thick gypsum veneer plaster skim coat. | D14: =2538+206+277+1343+2077+148 -> 6,589 | E14: sf | F14: 0 | G14: Type 1+Type 2+ Type 4+Type 5+Type 6 +Type 7
A15: 7 | B15: 3 5/8" steel studs 20 GA @ 16" O.C. | D15: 4,968 | E15: sf | F15: 0 | G15: Type 1+Type 2+Type 6+Type 7
A16: 8 | B16: 1 5/8" steel studs 20 GA @ 12" O.C. | D16: 277 | E16: sf | F16: 0 | G16: Type 4
A17: 9 | B17: Batt sound Insulation. | D17: =2538+206+2077 -> 4,821 | E17: sf | F17: 0 | G17: Type 1+Type 2+ Type 6
A18: 10 | B18: Batt sound Insulation type SAFB. | D18: 148 | E18: sf | F18: 0 | G18: Type 7 | H18: QTY Details
H19: Type 1 | I19: 2538 | J19: 2520
A20: TOTAL | F20: =SUM(F9:F18) -> 0 | H20: Type 2 | I20: 205 | J20: 206
B21: Exclusions | H21: Type 3 | I21: N/A
A22: 1 | B22: Mouldings | H22: Type 4 | I22: 277 | J22: 290
A23: 2 | B23: Patch work | H23: Type 5 | I23: 1342 | J23: 1200
A24: 3 | B24: Fixtures | H24: Type 6 | I24: 2077 | J24: 2670
A25: 4 | B25: Electrical work | H25: Type 7 | I25: 148 | J25: 150
A26: 5 | B26: Stone and/or tile work | H26: Type 8 | I26: 22 | J26: 20 | K26: No details given
A27: 6 | H27: Ceiling | I27: 3830
H28: Wet Ceiling | I28: 292
B31: DETAILS
B32: Type 1- Interior Partition | G32: Type 2- 2HR rated Interior Partition | H32: Type
B33: 2 layers 5/8' USG fiberock brand panels (Fiberock aqua tough brand at all wet areas) Glue second layer, finished with 3-32" thick gypsum veneer plaster skim coat. 3 5/8" Stl studs 20 GA @16" O.C with Batt insulation. 2 layers 5/8" USG fiberock brand panels(Fiberock aqua tough brand at all wet areas finished 3-32" thick gypsum veneer plaster skim coat | G33: 2 layers 5/8' USG fiberock brand panels (Fiberock aqua tough brand at all wet areas) Glue second layer, finished with 3-32" thick gypsum veneer plaster skim coat. 3 5/8" Stl studs 20 GA @16" O.C with Batt insulation. 2 layers 5/8" USG fiberock brand panels(Fiberock aqua tough brand at all wet areas finished 3-32" thick gypsum veneer plaster skim coat
B35: TYPE 3 Interior partition at chase | G35: TYPE 4 Pocket door partition
B36: 2 layer 5/8" USG fiberock brand panels ( Fiberock aqua tough brand at all wet areas ) Glue second layer fill batt insulation, finished with 3/32" thick gypsum veneer plaster skim coat. 20 Ga 2-1/2" mtl studs @ 16 O.C. with batt insulation. Pipe chase space. 2 layers 5/8" USG fiberock brand panels (Fiberock aqua tough brand at all wet areas finished with 3/32" thick gypsum veneer plaster skim coat. | G36: 2 Layers 5/8" USG fiberock brand panels (Fiberock Aqua tough brand at all wet areas) Glue second layer, Finished with 3/32" thick gypsum veneer plaster skim coat. 1 5/8" 20 Ga stl studs @12 O.C. 2 layer 5/8" USG fiberock brand panels (fiberock aqua tough brand at wet areas) finished with 3/32" thick gypsum veneer plaster skim coat.
B38: TYPE 5 Existing wall skim coat | G38: TYPE 6 EXISTING WALL- Furring
B39: Apply 3/32" Thick gypsum veneer skim coat. Fill and smooth all imperfections | G39: 3 5/8" 20 Ga stl studs @ 16 O.C. 2 layers 5/8" USG fiberock brand panels dimensions from exterior wall to be varified with architect. Fill with Batt insulation, Finished with 3/32" Thick Gypsum veneer plaster skim coat
B40: TYPE 7 Interior Partition- 3 Hr rated
B41: 3 layer 5/8" USG fiberock brand panels, glue third layer finished with 3/32" thick gypsum veneer plaster skim coat. 3 5/8" stl studs 20 GA @16"O.C. Batt insulation Type SAFB. 3 layer 5/8" USG fiberock brand panels, glue third layer finished with 3-32" thick gypsum veneer plaster skim coat
